[Event "Late-Titled-Tuesday-Blitz-May-28-2024"]
[Site "Chess.com"]
[Date "2024.05.28"]
[Round "10"]
[White "K_A_S_T_O_R"]
[Black "Charodej1"]
[Result "1-0"]
[WhiteElo "2859"]
[BlackElo "2507"]
[TimeControl "180+1"]
[EndTime "15:54:38 PDT"]
[Termination "K_A_S_T_O_R won by checkmate"]

1. e4 {[%clk 0:03:00.9]} 1... c6 {[%clk 0:02:58.3]} 2. d4 {[%clk 0:03:00.1]}
2... d5 {[%clk 0:02:58.9]} 3. exd5 {[%clk 0:03:00.7]} 3... cxd5 {[%clk
0:02:59.1]} 4. c4 {[%clk 0:03:01.3]} 4... Nf6 {[%clk 0:02:58.9]} 5. Nc3 {[%clk
0:03:01.8]} 5... Nc6 {[%clk 0:02:58.7]} 6. Bg5 {[%clk 0:03:01.1]} 6... dxc4
{[%clk 0:02:57]} 7. d5 {[%clk 0:03:00.6]} 7... Ne5 {[%clk 0:02:57.1]} 8. Bxc4
{[%clk 0:03:00.6]} 8... Nxc4 {[%clk 0:02:56.3]} 9. Qa4+ {[%clk 0:03:00.1]} 9...
Bd7 {[%clk 0:02:56.5]} 10. Qxc4 {[%clk 0:03:00.4]} 10... h6 {[%clk 0:02:48.8]}
11. Bf4 {[%clk 0:02:59.3]} 11... Rc8 {[%clk 0:02:46.6]} 12. Qb3 {[%clk
0:02:58.8]} 12... Qb6 {[%clk 0:02:45.1]} 13. Qxb6 {[%clk 0:02:58.2]} 13... axb6
{[%clk 0:02:45.1]} 14. Nf3 {[%clk 0:02:57.9]} 14... g5 {[%clk 0:02:41.1]} 15.
Be5 {[%clk 0:02:57.6]} 15... Bg7 {[%clk 0:02:41.1]} 16. O-O {[%clk 0:02:57.3]}
16... O-O {[%clk 0:02:40.7]} 17. Rfe1 {[%clk 0:02:57.8]} 17... Rfe8 {[%clk
0:02:36.9]} 18. h3 {[%clk 0:02:55.6]} 18... b5 {[%clk 0:02:36.1]} 19. a3 {[%clk
0:02:54.5]} 19... Rc4 {[%clk 0:02:21.3]} 20. Rad1 {[%clk 0:02:52.2]} 20... b4
{[%clk 0:02:17.3]} 21. Nd2 {[%clk 0:02:40.2]} 21... Rh4 {[%clk 0:02:16.9]} 22.
axb4 {[%clk 0:02:29.3]} 22... Rxb4 {[%clk 0:02:17.8]} 23. b3 {[%clk 0:02:20.8]}
23... Rc8 {[%clk 0:02:06.9]} 24. Rc1 {[%clk 0:02:20.2]} 24... Bf5 {[%clk
0:01:46.9]} 25. Na2 {[%clk 0:01:58.2]} 25... Rb6 {[%clk 0:01:34.6]} 26. Rxc8+
{[%clk 0:01:51.8]} 26... Bxc8 {[%clk 0:01:34.1]} 27. Nc4 {[%clk 0:01:47.8]}
27... Ra6 {[%clk 0:01:31]} 28. Nb4 {[%clk 0:01:46.3]} 28... b5 {[%clk
0:01:09.2]} 29. Nxa6 {[%clk 0:01:31.9]} 29... bxc4 {[%clk 0:01:09.2]} 30. Bxf6
{[%clk 0:01:21.4]} 30... Bxf6 {[%clk 0:01:05.9]} 31. Nc5 {[%clk 0:01:21.9]}
31... cxb3 {[%clk 0:01:04.3]} 32. Nxb3 {[%clk 0:01:21.7]} 32... Bb7 {[%clk
0:00:58.3]} 33. Rd1 {[%clk 0:01:21]} 33... Be5 {[%clk 0:00:53.2]} 34. Nc5 {[%clk
0:01:19.8]} 34... Bc8 {[%clk 0:00:52.8]} 35. g4 {[%clk 0:01:18.9]} 35... h5
{[%clk 0:00:38.4]} 36. f3 {[%clk 0:01:16.7]} 36... hxg4 {[%clk 0:00:38.3]} 37.
hxg4 {[%clk 0:01:16.3]} 37... f5 {[%clk 0:00:37.2]} 38. gxf5 {[%clk 0:01:12.7]}
38... Bxf5 {[%clk 0:00:38.1]} 39. Kg2 {[%clk 0:01:10.1]} 39... g4 {[%clk
0:00:37.2]} 40. f4 {[%clk 0:01:02.4]} 40... Bd6 {[%clk 0:00:25.8]} 41. Ne6
{[%clk 0:00:55.1]} 41... Bxe6 {[%clk 0:00:23.8]} 42. dxe6 {[%clk 0:00:55.1]}
42... Bxf4 {[%clk 0:00:23.9]} 43. Rd4 {[%clk 0:00:55.3]} 43... Bd6 {[%clk
0:00:20.4]} 44. Rxg4+ {[%clk 0:00:55.6]} 44... Kf8 {[%clk 0:00:20.9]} 45. Kf3
{[%clk 0:00:55.6]} 45... Be5 {[%clk 0:00:20.3]} 46. Ke4 {[%clk 0:00:55.6]} 46...
Bf6 {[%clk 0:00:20.8]} 47. Kf4 {[%clk 0:00:52.7]} 47... Ke8 {[%clk 0:00:20.3]}
48. Rg8# {[%clk 0:00:52.3]} 1-0

[Event "Late-Titled-Tuesday-Blitz-May-28-2024"]
[Site "Chess.com"]
[Date "2024.05.28"]
[Round "10"]
[White "djano"]
[Black "Eloist"]
[Result "1-0"]
[WhiteElo "2609"]
[BlackElo "2447"]
[TimeControl "180+1"]
[EndTime "15:54:45 PDT"]
[Termination "djano won on time"]

1. Nf3 {[%clk 0:03:00.9]} 1... Nf6 {[%clk 0:02:59.4]} 2. c4 {[%clk 0:03:00]}
2... b6 {[%clk 0:02:58.8]} 3. Nc3 {[%clk 0:02:57.7]} 3... Bb7 {[%clk 0:02:59]}
4. g3 {[%clk 0:02:57.6]} 4... e6 {[%clk 0:02:59.1]} 5. Bg2 {[%clk 0:02:57.2]}
5... Be7 {[%clk 0:02:59.5]} 6. O-O {[%clk 0:02:56.9]} 6... O-O {[%clk
0:02:59.7]} 7. d4 {[%clk 0:02:56]} 7... Ne4 {[%clk 0:02:58.7]} 8. Qd3 {[%clk
0:02:51.8]} 8... Nxc3 {[%clk 0:02:56.3]} 9. bxc3 {[%clk 0:02:52.2]} 9... Nc6
{[%clk 0:02:45.9]} 10. e4 {[%clk 0:02:48.6]} 10... d6 {[%clk 0:02:45.6]} 11. Nd2
{[%clk 0:02:45.2]} 11... e5 {[%clk 0:02:44.7]} 12. f4 {[%clk 0:02:43.4]} 12...
Bf6 {[%clk 0:02:33.5]} 13. fxe5 {[%clk 0:02:38.6]} 13... dxe5 {[%clk 0:02:32.9]}
14. d5 {[%clk 0:02:39.1]} 14... Nb8 {[%clk 0:02:23.1]} 15. c5 {[%clk 0:02:37]}
15... Na6 {[%clk 0:01:39.2]} 16. c6 {[%clk 0:02:33.4]} 16... Nc5 {[%clk
0:01:33.5]} 17. Qc2 {[%clk 0:02:23.9]} 17... Ba6 {[%clk 0:01:30.3]} 18. c4
{[%clk 0:02:24.3]} 18... Bg5 {[%clk 0:01:26.1]} 19. Nb3 {[%clk 0:02:15.2]} 19...
Bxc1 {[%clk 0:01:24.4]} 20. Raxc1 {[%clk 0:02:14.8]} 20... Qe7 {[%clk
0:01:20.1]} 21. Nd2 {[%clk 0:02:00.7]} 21... Bc8 {[%clk 0:01:16.3]} 22. Rf2
{[%clk 0:01:55.7]} 22... Bg4 {[%clk 0:01:14.3]} 23. Nf1 {[%clk 0:01:53.9]} 23...
Rad8 {[%clk 0:01:05.3]} 24. Ne3 {[%clk 0:01:53.9]} 24... Qg5 {[%clk 0:01:01.1]}
25. Qc3 {[%clk 0:01:48.3]} 25... Bc8 {[%clk 0:00:58.5]} 26. Rcf1 {[%clk
0:01:46.3]} 26... f6 {[%clk 0:00:55.4]} 27. Kh1 {[%clk 0:01:39]} 27... Rf7
{[%clk 0:00:52.8]} 28. Bf3 {[%clk 0:01:37.8]} 28... h5 {[%clk 0:00:47.6]} 29.
Rg1 {[%clk 0:01:36]} 29... Qg6 {[%clk 0:00:45.3]} 30. Qc2 {[%clk 0:01:32.9]}
30... f5 {[%clk 0:00:31.8]} 31. exf5 {[%clk 0:01:33.2]} 31... Bxf5 {[%clk
0:00:30.4]} 32. Nxf5 {[%clk 0:01:19.1]} 32... Rxf5 {[%clk 0:00:22.8]} 33. Bxh5
{[%clk 0:01:12.8]} 33... Qxh5 {[%clk 0:00:16.9]} 34. Qxf5 {[%clk 0:01:13]} 34...
Qxf5 {[%clk 0:00:14.1]} 35. Rxf5 {[%clk 0:01:13.9]} 35... e4 {[%clk 0:00:14]}
36. Re1 {[%clk 0:01:11]} 36... Re8 {[%clk 0:00:14.1]} 37. Re3 {[%clk 0:01:10.4]}
37... Kh7 {[%clk 0:00:13.2]} 38. Rf7 {[%clk 0:01:09.4]} 38... Kg6 {[%clk
0:00:12.5]} 39. Rxc7 {[%clk 0:01:09.5]} 39... Kf6 {[%clk 0:00:12.7]} 40. Rxa7
{[%clk 0:01:09.3]} 40... Ke5 {[%clk 0:00:12.6]} 41. c7 {[%clk 0:01:06.1]} 41...
Kd4 {[%clk 0:00:10.9]} 42. Re1 {[%clk 0:01:06.2]} 42... Nd3 {[%clk 0:00:09.5]}
43. Re2 {[%clk 0:01:06]} 43... Nc1 {[%clk 0:00:05.3]} 44. Rd2+ {[%clk
0:01:04.7]} 44... Kc3 {[%clk 0:00:04.8]} 45. Rd1 {[%clk 0:01:05.1]} 45... Kc2
{[%clk 0:00:04.6]} 46. Re1 {[%clk 0:01:04.5]} 46... Nd3 {[%clk 0:00:03.7]} 47.
Rxe4 {[%clk 0:01:03.4]} 47... Rxe4 {[%clk 0:00:02.7]} 48. c8=Q {[%clk 0:01:04]}
48... Re2 {[%clk 0:00:01]} 49. Qg4 {[%clk 0:01:02]} 1-0

[Event "Late-Titled-Tuesday-Blitz-May-28-2024"]
[Site "Chess.com"]
[Date "2024.05.28"]
[Round "10"]
[White "RobertJFischer71"]
[Black "ImportedItalianMaple"]
[Result "0-1"]
[WhiteElo "2649"]
[BlackElo "2548"]
[TimeControl "180+1"]
[EndTime "15:54:46 PDT"]
[Termination "ImportedItalianMaple won by resignation"]

1. e4 {[%clk 0:03:00.9]} 1... c5 {[%clk 0:02:56.5]} 2. Nf3 {[%clk 0:03:00.9]}
2... a6 {[%clk 0:02:56.8]} 3. d4 {[%clk 0:03:01.2]} 3... cxd4 {[%clk 0:02:57.7]}
4. Nxd4 {[%clk 0:03:01.3]} 4... Nf6 {[%clk 0:02:58.3]} 5. Nc3 {[%clk 0:03:00.6]}
5... e5 {[%clk 0:02:58.9]} 6. Nf3 {[%clk 0:03:00.7]} 6... Bb4 {[%clk 0:02:59.5]}
7. Bd3 {[%clk 0:02:58.4]} 7... d5 {[%clk 0:02:59.7]} 8. Qe2 {[%clk 0:02:50.1]}
8... d4 {[%clk 0:02:57.5]} 9. a3 {[%clk 0:02:49.6]} 9... Ba5 {[%clk 0:02:57.6]}
10. b4 {[%clk 0:02:49.2]} 10... dxc3 {[%clk 0:02:58]} 11. bxa5 {[%clk
0:02:49.5]} 11... Nc6 {[%clk 0:02:58.7]} 12. O-O {[%clk 0:02:48.6]} 12... h6
{[%clk 0:02:49.8]} 13. h3 {[%clk 0:02:47.8]} 13... O-O {[%clk 0:02:48.9]} 14.
Rd1 {[%clk 0:02:29.5]} 14... Qxa5 {[%clk 0:02:47.9]} 15. Bc4 {[%clk 0:02:29.6]}
15... Be6 {[%clk 0:01:43.2]} 16. Bxe6 {[%clk 0:02:22.9]} 16... fxe6 {[%clk
0:01:44.1]} 17. Qc4 {[%clk 0:02:12.3]} 17... Kf7 {[%clk 0:01:40]} 18. Be3 {[%clk
0:02:05.2]} 18... Rfd8 {[%clk 0:01:34.5]} 19. Rxd8 {[%clk 0:01:57.4]} 19... Rxd8
{[%clk 0:01:34.1]} 20. Rb1 {[%clk 0:01:57.9]} 20... Rd7 {[%clk 0:01:30.6]} 21.
Bc5 {[%clk 0:01:46.3]} 21... b5 {[%clk 0:01:20.9]} 22. Qe2 {[%clk 0:01:37.1]}
22... Qa4 {[%clk 0:01:15.7]} 23. Re1 {[%clk 0:01:07.2]} 23... Ke8 {[%clk
0:00:59.9]} 24. g3 {[%clk 0:01:02.1]} 24... Kd8 {[%clk 0:00:44.9]} 25. Qe3
{[%clk 0:00:28.4]} 25... Qxc2 {[%clk 0:00:32.9]} 26. Bb6+ {[%clk 0:00:28.6]}
26... Kc8 {[%clk 0:00:33.2]} 27. Nxe5 {[%clk 0:00:17.2]} 27... Nxe5 {[%clk
0:00:30]} 28. Qc5+ {[%clk 0:00:16.7]} 28... Kb7 {[%clk 0:00:30.6]} 29. Ba5
{[%clk 0:00:15.9]} 29... Nc4 {[%clk 0:00:26.3]} 30. Bb4 {[%clk 0:00:13.7]} 30...
Nxe4 {[%clk 0:00:20.6]} 31. Rxe4 {[%clk 0:00:05.6]} 31... Qxe4 {[%clk
0:00:21.5]} 32. Bxc3 {[%clk 0:00:06.1]} 32... Rd1+ {[%clk 0:00:21.4]} 0-1

[Event "Late-Titled-Tuesday-Blitz-May-28-2024"]
[Site "Chess.com"]
[Date "2024.05.28"]
[Round "10"]
[White "janhelmer03"]
[Black "th3d4rkness"]
[Result "0-1"]
[WhiteElo "2377"]
[BlackElo "2193"]
[TimeControl "180+1"]
[EndTime "15:54:51 PDT"]
[Termination "th3d4rkness won by checkmate"]

1. Nf3 {[%clk 0:02:51.7]} 1... Nf6 {[%clk 0:02:59.8]} 2. c4 {[%clk 0:02:51.9]}
2... g6 {[%clk 0:02:59.7]} 3. Nc3 {[%clk 0:02:52.5]} 3... Bg7 {[%clk 0:03:00.3]}
4. e4 {[%clk 0:02:53.2]} 4... d6 {[%clk 0:02:59.7]} 5. d4 {[%clk 0:02:54.1]}
5... O-O {[%clk 0:02:59.8]} 6. Be2 {[%clk 0:02:55]} 6... Nc6 {[%clk 0:02:58.5]}
7. d5 {[%clk 0:02:55.3]} 7... Nb8 {[%clk 0:02:58.1]} 8. O-O {[%clk 0:02:55.4]}
8... e5 {[%clk 0:02:57.9]} 9. b4 {[%clk 0:02:54]} 9... a5 {[%clk 0:02:57.4]} 10.
bxa5 {[%clk 0:02:54.3]} 10... Rxa5 {[%clk 0:02:55.1]} 11. Nd2 {[%clk 0:02:54.8]}
11... Ra8 {[%clk 0:02:53]} 12. a4 {[%clk 0:02:53.7]} 12... Na6 {[%clk
0:02:52.6]} 13. Nb3 {[%clk 0:02:53.5]} 13... Nd7 {[%clk 0:02:49.3]} 14. Be3
{[%clk 0:02:52.8]} 14... f5 {[%clk 0:02:45.8]} 15. f3 {[%clk 0:02:52.1]} 15...
b6 {[%clk 0:02:40.2]} 16. a5 {[%clk 0:02:50.5]} 16... Nac5 {[%clk 0:02:24.3]}
17. Nxc5 {[%clk 0:02:31.2]} 17... bxc5 {[%clk 0:02:14.3]} 18. Nb5 {[%clk
0:02:24.2]} 18... Ba6 {[%clk 0:02:08.9]} 19. Qc2 {[%clk 0:02:18.1]} 19... Rf7
{[%clk 0:01:49.3]} 20. Bd3 {[%clk 0:01:11.6]} 20... f4 {[%clk 0:01:48.1]} 21.
Bf2 {[%clk 0:01:11.7]} 21... g5 {[%clk 0:01:47.9]} 22. Rfb1 {[%clk 0:01:09.9]}
22... Bf8 {[%clk 0:01:45.1]} 23. Qd1 {[%clk 0:01:07]} 23... Rg7 {[%clk
0:01:36.9]} 24. h3 {[%clk 0:01:05.4]} 24... h5 {[%clk 0:01:31.1]} 25. g4 {[%clk
0:00:37.7]} 25... hxg4 {[%clk 0:01:23.7]} 26. hxg4 {[%clk 0:00:37.1]} 26... Rh7
{[%clk 0:01:23.9]} 27. Bf1 {[%clk 0:00:31.8]} 27... Nf6 {[%clk 0:01:22.1]} 28.
Bg2 {[%clk 0:00:30.6]} 28... Qe8 {[%clk 0:01:12.1]} 29. Kf1 {[%clk 0:00:25.7]}
29... Qg6 {[%clk 0:01:06.8]} 30. Bg1 {[%clk 0:00:19.6]} 30... Bc8 {[%clk
0:00:59.3]} 31. a6 {[%clk 0:00:17.1]} 31... Rxa6 {[%clk 0:00:48.1]} 32. Rxa6
{[%clk 0:00:16.4]} 32... Bxa6 {[%clk 0:00:47.7]} 33. Qa4 {[%clk 0:00:17.1]}
33... Bc8 {[%clk 0:00:43.6]} 34. Qa8 {[%clk 0:00:16.8]} 34... Bxg4 {[%clk
0:00:35.8]} 35. fxg4 {[%clk 0:00:17.1]} 35... Nxe4 {[%clk 0:00:33]} 36. Re1
{[%clk 0:00:10.3]} 36... Ng3+ {[%clk 0:00:29.4]} 37. Kf2 {[%clk 0:00:10.1]}
37... Qc2+ {[%clk 0:00:29.1]} 38. Kf3 {[%clk 0:00:09.8]} 38... e4+ {[%clk
0:00:28.4]} 39. Rxe4 {[%clk 0:00:07.8]} 39... Qxe4+ {[%clk 0:00:28.5]} 40. Kf2
{[%clk 0:00:08.1]} 40... Qe2# {[%clk 0:00:28.8]} 0-1

[Event "Late-Titled-Tuesday-Blitz-May-28-2024"]
[Site "Chess.com"]
[Date "2024.05.28"]
[Round "10"]
[White "Romkachess"]
[Black "JanMur7"]
[Result "1-0"]
[WhiteElo "2549"]
[BlackElo "2297"]
[TimeControl "180+1"]
[EndTime "15:54:54 PDT"]
[Termination "Romkachess won by checkmate"]

1. e4 {[%clk 0:00:43.5]} 1... g6 {[%clk 0:02:58.9]} 2. d4 {[%clk 0:00:37]} 2...
Bg7 {[%clk 0:02:59]} 3. Nc3 {[%clk 0:00:36.1]} 3... c5 {[%clk 0:02:59.5]} 4. Be3
{[%clk 0:00:36.1]} 4... cxd4 {[%clk 0:02:59.1]} 5. Bxd4 {[%clk 0:00:36.1]} 5...
Nf6 {[%clk 0:02:59.7]} 6. Be2 {[%clk 0:00:34.9]} 6... d6 {[%clk 0:02:59.4]} 7.
h4 {[%clk 0:00:35.2]} 7... Nc6 {[%clk 0:02:59.9]} 8. Be3 {[%clk 0:00:35.1]} 8...
h5 {[%clk 0:02:59.3]} 9. Nh3 {[%clk 0:00:34.9]} 9... Ng4 {[%clk 0:02:58.4]} 10.
Bf4 {[%clk 0:00:19.5]} 10... O-O {[%clk 0:02:41.4]} 11. Qd2 {[%clk 0:00:19.4]}
11... Nd4 {[%clk 0:02:36.6]} 12. Bd3 {[%clk 0:00:14.8]} 12... Be6 {[%clk
0:02:21.6]} 13. f3 {[%clk 0:00:15]} 13... Ne5 {[%clk 0:02:21.7]} 14. Ng5 {[%clk
0:00:15]} 14... Qd7 {[%clk 0:02:15.5]} 15. O-O-O {[%clk 0:00:14.6]} 15... b5
{[%clk 0:02:11.2]} 16. Nxe6 {[%clk 0:00:13.8]} 16... Nxe6 {[%clk 0:02:10.6]} 17.
Bh6 {[%clk 0:00:13.5]} 17... Nxd3+ {[%clk 0:02:02.7]} 18. cxd3 {[%clk
0:00:14.4]} 18... b4 {[%clk 0:02:01.2]} 19. Nd5 {[%clk 0:00:14.1]} 19... b3
{[%clk 0:01:39.3]} 20. axb3 {[%clk 0:00:13.2]} 20... Nd4 {[%clk 0:01:33.6]} 21.
Kb1 {[%clk 0:00:13.1]} 21... Nxb3 {[%clk 0:01:31.7]} 22. Qg5 {[%clk 0:00:13.3]}
22... Bxh6 {[%clk 0:00:59.5]} 23. Qxh6 {[%clk 0:00:14.2]} 23... Nd4 {[%clk
0:00:58.3]} 24. g4 {[%clk 0:00:13.8]} 24... Rab8 {[%clk 0:00:52.7]} 25. gxh5
{[%clk 0:00:13.7]} 25... Rfc8 {[%clk 0:00:26.6]} 26. Rh2 {[%clk 0:00:12]} 26...
Qa4 {[%clk 0:00:24.1]} 27. Rg1 {[%clk 0:00:11.9]} 27... Nf5 {[%clk 0:00:03.8]}
28. exf5 {[%clk 0:00:08.3]} 28... Rxb2+ {[%clk 0:00:02.6]} 29. Rxb2 {[%clk
0:00:07.6]} 29... Qd7 {[%clk 0:00:02]} 30. f6 {[%clk 0:00:07.4]} 30... exf6
{[%clk 0:00:01.5]} 31. Nxf6# {[%clk 0:00:07.3]} 1-0

[Event "Late-Titled-Tuesday-Blitz-May-28-2024"]
[Site "Chess.com"]
[Date "2024.05.28"]
[Round "10"]
[White "FairChess_on_YouTube"]
[Black "AlexeiShirov"]
[Result "0-1"]
[WhiteElo "3073"]
[BlackElo "2931"]
[TimeControl "180+1"]
[EndTime "15:54:56 PDT"]
[Termination "AlexeiShirov won by resignation"]

1. c4 {[%clk 0:03:00.9]} 1... c6 {[%clk 0:02:59.4]} 2. Nf3 {[%clk 0:02:57.1]}
2... d5 {[%clk 0:02:59.1]} 3. g3 {[%clk 0:02:57.6]} 3... g6 {[%clk 0:02:52.9]}
4. Qa4 {[%clk 0:02:54.2]} 4... Nf6 {[%clk 0:02:47.2]} 5. cxd5 {[%clk 0:02:52.2]}
5... Nxd5 {[%clk 0:02:46.2]} 6. Qd4 {[%clk 0:02:51.9]} 6... f6 {[%clk
0:02:42.9]} 7. Bg2 {[%clk 0:02:45.6]} 7... Bg7 {[%clk 0:02:41.3]} 8. e4 {[%clk
0:02:26.4]} 8... e5 {[%clk 0:02:39.2]} 9. Qa4 {[%clk 0:02:24.2]} 9... Nb6 {[%clk
0:02:32.9]} 10. Qc2 {[%clk 0:02:21.9]} 10... Na6 {[%clk 0:02:22.7]} 11. a3
{[%clk 0:02:17.8]} 11... Be6 {[%clk 0:02:10.2]} 12. O-O {[%clk 0:02:16]} 12...
Bc4 {[%clk 0:02:08.9]} 13. Nc3 {[%clk 0:02:10.4]} 13... Bd3 {[%clk 0:02:04.8]}
14. Qd1 {[%clk 0:02:08.5]} 14... Nc5 {[%clk 0:01:58.3]} 15. b4 {[%clk
0:01:59.7]} 15... Bxf1 {[%clk 0:01:48.9]} 16. Bxf1 {[%clk 0:01:55.6]} 16... Nd3
{[%clk 0:01:48.1]} 17. Qb3 {[%clk 0:01:50.4]} 17... Qd7 {[%clk 0:01:35.8]} 18.
a4 {[%clk 0:01:36.1]} 18... Nxc1 {[%clk 0:01:29.7]} 19. Rxc1 {[%clk 0:01:37]}
19... Qf7 {[%clk 0:01:29.3]} 20. Qb1 {[%clk 0:01:37]} 20... O-O {[%clk
0:01:24.5]} 21. a5 {[%clk 0:01:37.1]} 21... Nd7 {[%clk 0:01:24]} 22. b5 {[%clk
0:01:23.6]} 22... Kh8 {[%clk 0:01:16.8]} 23. a6 {[%clk 0:01:23.4]} 23... Rab8
{[%clk 0:01:16]} 24. Qa1 {[%clk 0:01:17.9]} 24... cxb5 {[%clk 0:01:14.4]} 25.
Bxb5 {[%clk 0:01:12.9]} 25... bxa6 {[%clk 0:01:12.7]} 26. Qxa6 {[%clk
0:01:11.7]} 26... Nc5 {[%clk 0:01:12.6]} 27. Qa5 {[%clk 0:01:01.4]} 27... Nb3
{[%clk 0:01:12.1]} 28. Qa3 {[%clk 0:00:59.8]} 28... Nxc1 {[%clk 0:01:08.8]} 29.
Qxc1 {[%clk 0:01:00.7]} 29... Qb3 {[%clk 0:01:01.3]} 30. Ba4 {[%clk 0:00:53]}
30... Qb2 {[%clk 0:01:00.7]} 31. Qf1 {[%clk 0:00:53.1]} 31... Rfd8 {[%clk
0:01:00.2]} 32. Kg2 {[%clk 0:00:34]} 32... Rxd2 {[%clk 0:00:54.4]} 33. Nxd2
{[%clk 0:00:34.9]} 33... Qxc3 {[%clk 0:00:51.1]} 34. Nf3 {[%clk 0:00:25.3]}
34... Qb4 {[%clk 0:00:48.7]} 35. Bc6 {[%clk 0:00:24.3]} 35... Bf8 {[%clk
0:00:44.7]} 36. Bd5 {[%clk 0:00:23]} 36... Bc5 {[%clk 0:00:43.8]} 37. Qa6 {[%clk
0:00:20.8]} 37... Qb6 {[%clk 0:00:43.3]} 38. Qa2 {[%clk 0:00:18.2]} 38... Qb2
{[%clk 0:00:38]} 39. Qc4 {[%clk 0:00:05.9]} 39... Qxf2+ {[%clk 0:00:37.1]} 40.
Kh3 {[%clk 0:00:06.6]} 40... Qxf3 {[%clk 0:00:32.3]} 41. Qxc5 {[%clk 0:00:07.1]}
41... Qh5+ {[%clk 0:00:31.4]} 42. Kg2 {[%clk 0:00:07.7]} 42... Rb2+ {[%clk
0:00:31]} 0-1

[Event "Late-Titled-Tuesday-Blitz-May-28-2024"]
[Site "Chess.com"]
[Date "2024.05.28"]
[Round "10"]
[White "IMRosen"]
[Black "Slovak_fighter2000"]
[Result "1-0"]
[WhiteElo "2733"]
[BlackElo "2563"]
[TimeControl "180+1"]
[EndTime "15:55:07 PDT"]
[Termination "IMRosen won on time"]

1. d4 {[%clk 0:03:00.9]} 1... d6 {[%clk 0:02:57.3]} 2. e4 {[%clk 0:03:00.7]}
2... Nf6 {[%clk 0:02:56.8]} 3. Nc3 {[%clk 0:03:00.7]} 3... g6 {[%clk 0:02:56.7]}
4. Bf4 {[%clk 0:03:00.3]} 4... Bg7 {[%clk 0:02:53.9]} 5. Qd2 {[%clk 0:03:00.5]}
5... Nc6 {[%clk 0:02:42]} 6. O-O-O {[%clk 0:02:59.4]} 6... a6 {[%clk 0:02:29.7]}
7. f3 {[%clk 0:02:54.4]} 7... e6 {[%clk 0:02:24.7]} 8. Bh6 {[%clk 0:02:52.8]}
8... Bxh6 {[%clk 0:02:19.3]} 9. Qxh6 {[%clk 0:02:53.7]} 9... Bd7 {[%clk
0:02:10.6]} 10. d5 {[%clk 0:02:14.3]} 10... Ne5 {[%clk 0:01:54.4]} 11. h3 {[%clk
0:02:14.1]} 11... Ng8 {[%clk 0:01:46.2]} 12. Qg7 {[%clk 0:02:04.7]} 12... Qf6
{[%clk 0:01:45.5]} 13. Qxf6 {[%clk 0:02:05.1]} 13... Nxf6 {[%clk 0:01:46.4]} 14.
f4 {[%clk 0:02:05.8]} 14... Neg4 {[%clk 0:01:34.7]} 15. hxg4 {[%clk 0:02:04.3]}
15... Nxg4 {[%clk 0:01:35.6]} 16. Nh3 {[%clk 0:02:04]} 16... Ke7 {[%clk
0:01:26.3]} 17. Be2 {[%clk 0:02:02.7]} 17... Ne3 {[%clk 0:01:17.6]} 18. Rd3
{[%clk 0:01:38.1]} 18... Nxg2 {[%clk 0:01:10.3]} 19. Rg3 {[%clk 0:01:37.1]}
19... Nh4 {[%clk 0:01:03.8]} 20. Ng5 {[%clk 0:01:17.9]} 20... h6 {[%clk
0:01:03]} 21. Nxf7 {[%clk 0:01:18.2]} 21... Kxf7 {[%clk 0:01:02.6]} 22. Rxh4
{[%clk 0:01:16.6]} 22... Rag8 {[%clk 0:00:57.6]} 23. Kd2 {[%clk 0:01:06.6]}
23... b5 {[%clk 0:00:52.6]} 24. a3 {[%clk 0:01:06]} 24... c6 {[%clk 0:00:51.1]}
25. Bf3 {[%clk 0:00:59.6]} 25... Re8 {[%clk 0:00:33.7]} 26. dxe6+ {[%clk
0:00:55.3]} 26... Bxe6 {[%clk 0:00:30.4]} 27. f5 {[%clk 0:00:51.9]} 27... Bd7
{[%clk 0:00:15.1]} 28. Rxg6 {[%clk 0:00:49.4]} 28... Ke7 {[%clk 0:00:13.2]} 29.
Rhxh6 {[%clk 0:00:47.4]} 29... Rxh6 {[%clk 0:00:12.5]} 30. Rxh6 {[%clk
0:00:48.3]} 30... Rg8 {[%clk 0:00:10.4]} 31. Rh7+ {[%clk 0:00:43.8]} 31... Kd8
{[%clk 0:00:09.8]} 32. Ne2 {[%clk 0:00:41.9]} 32... a5 {[%clk 0:00:08.8]} 33.
Ke3 {[%clk 0:00:40.2]} 33... Rf8 {[%clk 0:00:09.2]} 34. b4 {[%clk 0:00:39.7]}
34... axb4 {[%clk 0:00:08.8]} 35. axb4 {[%clk 0:00:40.6]} 35... c5 {[%clk
0:00:09.4]} 36. bxc5 {[%clk 0:00:39.7]} 36... dxc5 {[%clk 0:00:09.5]} 37. Nf4
{[%clk 0:00:40.4]} 37... Bxf5 {[%clk 0:00:08.4]} 38. exf5 {[%clk 0:00:38.5]}
38... Rxf5 {[%clk 0:00:09.3]} 39. Ke4 {[%clk 0:00:38.2]} 39... Rf6 {[%clk
0:00:07.3]} 40. Bg4 {[%clk 0:00:33.5]} 40... Rd6 {[%clk 0:00:03.1]} 41. Nd5
{[%clk 0:00:31]} 41... Ke8 {[%clk 0:00:01.8]} 42. Ke5 {[%clk 0:00:29]} 42... Ra6
{[%clk 0:00:01.4]} 43. Nc7+ {[%clk 0:00:26.8]} 43... Kf8 {[%clk 0:00:01.2]} 44.
Nxa6 {[%clk 0:00:27]} 44... Kg8 {[%clk 0:00:02.1]} 45. Rd7 {[%clk 0:00:26.4]}
1-0